bitfinex-derivatives/quotes_BTCF0:USTF0_20241226
["timestamp","ask_amount","ask_price","bid_price","bid_amount"]
[1735195625685,0.00152899,98149.0,98147.0,0.0428]
[1735195626287,0.00152899,98149.0,98148.0,0.001]
[1735195626694,0.00152899,98149.0,98148.0,0.002]
[1735195627284,0.00152899,98149.0,98147.0,0.0418]
[1735195627485,0.00152899,98149.0,98147.0,0.0428]
[1735195627691,4e-05,98148.0,98147.0,0.0428]
[1735195627885,4e-05,98148.0,98147.0,0.0418]
[1735195629086,4e-05,98148.0,98147.0,0.0408]
[1735195629897,4e-05,98148.0,98147.0,0.0428]
[1735195630497,4e-05,98148.0,98147.0,0.0418]
[1735195630799,4e-05,98148.0,98147.0,0.0428]
[1735195632397,4e-05,98148.0,98147.0,0.002]
[1735195632698,0.03324,98148.0,98147.0,0.002]
[1735195633096,0.03324,98148.0,98139.0,8e-05]
[1735195633097,0.040803,98140.0,98139.0,8e-05]
[1735195633602,0.040843,98140.0,98139.0,8e-05]
[1735195634192,0.040843,98140.0,98139.0,0.00108]
[1735195635191,0.041843,98140.0,98139.0,0.00208]
[1735195647706,0.040809,98125.0,98124.0,0.040809]
[1735195648014,0.04081,98122.0,98119.0,0.01420796]
[1735195648203,0.033,98121.0,98119.0,0.01420796]
[1735195648510,0.033,98121.0,98110.0,0.30433937]
[1735195648511,0.040813,98116.0,98110.0,0.30433937]
[1735195649011,0.040853,98116.0,98110.0,0.30433937]
[1735195649197,0.040815,98111.0,98110.0,0.30433937]
[1735195649393,0.040855,98111.0,98110.0,0.30433937]
[1735195650105,4e-05,98111.0,98093.0,0.0014]
[1735195650300,0.040821,98096.0,98091.0,0.18]
[1735195650495,4e-05,98094.0,98091.0,0.18]
[1735195651211,4e-05,98092.0,98091.0,0.18]
[1735195651708,4e-05,98092.0,98091.0,0.181]
[1735195656505,4e-05,98092.0,98091.0,0.001]
[1735195663814,4e-05,98092.0,98080.0,0.00152931]
[1735195664011,0.040828,98081.0,98080.0,0.00152931]
[1735195664218,0.040868,98081.0,98080.0,0.00152931]
[1735195666312,0.043868,98081.0,98080.0,0.00152931]
[1735195668626,0.043868,98081.0,98075.0,0.07443]
[1735195669121,4e-05,98076.0,98075.0,0.07443]
[1735195669518,0.040825,98088.0,98083.0,0.040827]
[1735195669715,0.12160156,98092.0,98090.0,0.040824]
[1735195670125,0.12160156,98097.0,98090.0,0.040824]
[1735195670320,0.040823,98094.0,98090.0,0.040824]
[1735195670521,0.040823,98092.0,98090.0,0.040824]
[1735195670925,0.043823,98092.0,98090.0,0.040824]
[1735195672629,0.043823,98092.0,98091.0,0.0338]
[1735195673021,0.040823,98092.0,98091.0,0.0338]
[1735195673726,0.12160156,98102.0,98091.0,0.0338]
[1735195673928,0.12160156,98102.0,98098.0,0.040821]
[1735195674425,0.16242056,98102.0,98098.0,0.040821]
[1735195674629,0.12160156,98102.0,98098.0,0.040821]
[1735195674837,0.04082,98100.0,98098.0,0.040821]
[1735195676733,0.04182,98100.0,98098.0,0.040821]
[1735195676926,0.04282,98100.0,98098.0,0.040821]
[1735195679028,0.040823,98094.0,98092.0,0.0326]
[1735195679235,0.002,98100.0,98090.0,8e-05]
[1735195679430,0.040824,98091.0,98090.0,8e-05]
[1735195680325,0.040825,98089.0,98088.0,8e-05]
[1735195680728,0.040865,98089.0,98088.0,8e-05]
[1735195681328,0.16246656,98089.0,98088.0,8e-05]
[1735195682636,0.16346656,98089.0,98088.0,8e-05]
[1735195682836,0.042865,98089.0,98088.0,8e-05]
[1735195688735,0.00204,98089.0,98088.0,8e-05]
[1735195689634,4e-05,98093.0,98092.0,0.040823]
[1735195690331,0.04244195,98096.0,98095.0,0.040822]
[1735195690731,0.04244195,98096.0,98095.0,0.040902]
[1735195690931,0.04244195,98096.0,98095.0,0.220902]
[1735195691536,0.12180367,98106.0,98105.0,0.040818]
[1735195691826,0.12180367,98106.0,98105.0,0.040898]
[1735195692845,0.12180367,98108.0,98107.0,0.040817]
[1735195693146,0.12180367,98108.0,98107.0,0.040897]
[1735195694143,0.16261867,98113.0,98107.0,0.040897]
[1735195694535,0.16261867,98113.0,98111.0,8e-05]
[1735195695442,0.040815,98113.0,98111.0,8e-05]
[1735195697945,0.16261867,98113.0,98111.0,8e-05]
[1735195699335,0.12333312,98112.0,98111.0,8e-05]
[1735195701244,0.00152945,98112.0,98111.0,8e-05]
[1735195703946,0.00152945,98112.0,98111.0,0.18008]
[1735195704135,0.00152945,98112.0,98111.0,0.28368]
[1735195704739,0.18230925,98123.0,98122.0,0.040811]
[1735195705248,0.12173364,98124.0,98122.0,0.040891]
[1735195705438,0.12173364,98124.0,98122.0,0.220891]
[1735195705637,0.12173364,98124.0,98123.0,8e-05]
[1735195706140,0.12173364,98124.0,98123.0,0.18008]
[1735195706948,0.12173364,98130.0,98128.0,0.040808]
[1735195707448,0.12173364,98130.0,98129.0,8e-05]
[1735195708248,0.040806,98134.0,98129.0,8e-05]
[1735195708446,0.040806,98134.0,98129.0,0.00108]
[1735195709448,0.040806,98134.0,98129.0,8e-05]
[1735195709654,0.040806,98134.0,98129.0,0.00108]
[1735195710039,0.040806,98134.0,98129.0,0.041887]
[1735195710745,0.040806,98134.0,98129.0,0.042887]
[1735195711349,0.040806,98134.0,98132.0,0.040806]
[1735195711748,0.13304088,98137.0,98129.0,0.00208]
[1735195711947,0.13304088,98137.0,98135.0,0.040805]
[1735195712142,0.13304088,98137.0,98136.0,8e-05]
[1735195713640,0.040804,98139.0,98136.0,8e-05]
[1735195713949,0.12173364,98140.0,98138.0,0.040884]
[1735195714652,0.12173364,98145.0,98138.0,8e-05]
[1735195714853,0.12173364,98145.0,98142.0,0.040802]
[1735195715052,0.12173364,98145.0,98142.0,0.040882]
[1735195715654,0.12173364,98145.0,98144.0,0.040801]
[1735195716046,0.12173364,98145.0,98144.0,0.040881]
[1735195716550,0.12173364,98151.0,98150.0,0.040799]
[1735195716937,0.12173364,98151.0,98150.0,0.040879]
[1735195717847,0.12173364,98151.0,98150.0,0.041879]
[1735195718048,0.040793,98164.0,98157.0,0.040796]
[1735195718350,0.040793,98164.0,98163.0,8e-05]
[1735195719650,0.040793,98164.0,98163.0,0.00108]
[1735195720454,0.040793,98164.0,98163.0,0.00208]
[1735195723348,0.040793,98165.0,98147.0,0.0408]
[1735195723550,0.040797,98155.0,98150.0,0.09981008]
[1735195724644,0.040797,98155.0,98150.0,0.14060908]
[1735195725453,0.041797,98155.0,98150.0,0.14160908]
[1735195725659,0.041797,98155.0,98153.0,0.040797]
[1735195726454,0.042797,98155.0,98153.0,0.040797]
[1735195726953,0.043797,98155.0,98153.0,0.041797]
[1735195727255,0.044797,98155.0,98153.0,0.042797]
[1735195728247,0.044797,98155.0,98153.0,0.002]
[1735195729851,0.044797,98155.0,98154.0,0.18]
[1735195730350,0.044797,98155.0,98153.0,0.002]
[1735195730751,4e-05,98154.0,98153.0,0.002]
[1735195731464,4e-05,98154.0,98153.0,0.001]
[1735195731763,0.040798,98153.0,98148.0,0.2208]
[1735195732263,4e-05,98149.0,98148.0,0.2208]
[1735195733162,4e-05,98149.0,98148.0,0.2218]
[1735195733357,4e-05,98149.0,98148.0,0.2228]
[1735195734751,0.00204,98149.0,98148.0,0.2228]
[1735195738757,0.00204,98149.0,98148.0,0.0428]
[1735195741169,0.09312372,98149.0,98148.0,0.0428]
[1735195742058,0.09312372,98149.0,98148.0,0.2228]
[1735195742558,0.00204,98149.0,98148.0,0.2228]
[1735195753477,0.15450985,98149.0,98148.0,0.2228]
[1735195754979,0.00204,98149.0,98148.0,0.2228]
[1735195756372,0.00204,98149.0,98148.0,0.0428]
[1735195758078,0.05161502,98149.0,98148.0,0.0428]
[1735195760865,0.05161502,98149.0,98148.0,0.002]
[1735195761073,0.040801,98144.0,98142.0,0.2437829]
[1735195761581,4e-05,98143.0,98142.0,0.2437829]
[1735195762380,4e-05,98143.0,98142.0,0.2447829]
[1735195762677,4e-05,98143.0,98142.0,0.002]
[1735195762678,0.04961502,98143.0,98142.0,0.002]
[1735195763469,0.05161502,98143.0,98142.0,0.002]
[1735195763681,0.05161502,98143.0,98142.0,0.001]
[1735195763877,0.05361502,98143.0,98142.0,0.002]
[1735195764278,0.040802,98142.0,98125.0,0.040809]
[1735195764583,4e-05,98126.0,98125.0,0.040809]
[1735195764785,0.03424,98126.0,98125.0,0.040809]
[1735195765471,0.03424,98126.0,98125.0,0.041809]
[1735195765874,0.03424,98126.0,98125.0,0.042809]
[1735195766785,0.03424,98126.0,98125.0,0.041809]
[1735195766974,0.03724,98126.0,98125.0,0.042809]
[1735195767173,0.04024,98126.0,98125.0,0.041809]
[1735195771583,0.09726367,98126.0,98125.0,0.041809]
[1735195773078,0.00604,98126.0,98125.0,0.041809]
[1735195787503,0.09726367,98126.0,98125.0,0.041809]
[1735195789303,0.00604,98126.0,98125.0,0.041809]
[1735195790605,0.12771718,98126.0,98125.0,0.041809]
[1735195791804,0.00604,98126.0,98125.0,0.041809]
[1735195794697,0.00604,98126.0,98125.0,0.08244391]
[1735195794906,0.00604,98126.0,98125.0,0.26244391]
[1735195796907,0.00604,98126.0,98125.0,0.041809]
[1735195798301,0.00604,98126.0,98125.0,0.2253496]
[1735195800696,0.00604,98126.0,98125.0,0.041809]
[1735195802205,0.15813648,98126.0,98125.0,0.041809]
[1735195803307,0.19894548,98126.0,98125.0,0.001]
[1735195803698,0.046849,98126.0,98125.0,0.001]
[1735195805512,0.09644277,98126.0,98125.0,0.001]
[1735195806696,0.05563377,98126.0,98125.0,0.041809]
[1735195807407,0.05563377,98126.0,98125.0,0.221809]
[1735195807608,0.05563377,98126.0,98125.0,0.22061482]
[1735195808008,0.15798864,98126.0,98125.0,0.22061482]
[1735195810109,0.15798864,98126.0,98125.0,0.04061482]
[1735195810302,0.15798864,98126.0,98119.0,0.00011198]
[1735195810511,0.04081,98124.0,98122.0,0.04081]
[1735195810713,0.04081,98124.0,98122.0,0.22081]
[1735195810914,0.04081,98124.0,98122.0,0.04081]
[1735195813012,0.04581,98124.0,98122.0,0.04181]
[1735195813410,0.04881,98124.0,98122.0,0.001]
[1735195813610,0.0323,98123.0,98122.0,0.001]
[1735195814413,0.08189389,98123.0,98122.0,0.001]
[1735195815010,0.08189389,98123.0,98119.0,0.00011198]
[1735195815210,0.12670489,98123.0,98122.0,0.001]
[1735195815710,0.12970489,98123.0,98122.0,0.001]
[1735195816222,0.040812,98120.0,98119.0,0.00111198]
[1735195816716,0.040852,98120.0,98119.0,0.00111198]
[1735195817310,0.043852,98120.0,98119.0,0.00111198]
[1735195818305,0.043852,98120.0,98119.0,0.00011198]
[1735195818609,0.09344893,98120.0,98119.0,0.00011198]
[1735195818914,0.09344893,98120.0,98103.0,0.18]
[1735195818915,0.040819,98104.0,98103.0,0.18]
[1735195819213,0.040859,98104.0,98103.0,0.18]
[1735195819821,0.16235088,98104.0,98103.0,0.18]
[1735195820120,0.16335088,98104.0,98103.0,0.18]
[1735195820919,0.0419397,98104.0,98103.0,0.18]
[1735195821523,0.0439397,98104.0,98103.0,0.18]
[1735195822521,0.13489367,98104.0,98103.0,0.18]
[1735195823912,0.0439397,98104.0,98103.0,0.18]
[1735195828012,0.0031207,98104.0,98103.0,0.18]
[1735195831521,0.0031207,98104.0,98102.0,0.040819]
[1735195831723,0.0940778,98104.0,98102.0,0.040819]
[1735195831925,4e-05,98103.0,98102.0,0.040819]
[1735195833022,0.040859,98103.0,98101.0,0.032]
[1735195833228,0.1318161,98103.0,98101.0,0.032]
[1735195833523,4e-05,98102.0,98101.0,0.032]
[1735195835221,0.00104,98102.0,98101.0,0.032]
[1735195835626,0.00204,98102.0,98101.0,0.032]
[1735195836725,0.00204,98102.0,98101.0,0.212]
[1735195846238,0.00204,98102.0,98101.0,0.39553861]
[1735195846737,0.00204,98102.0,98101.0,0.436177]
[1735195847537,0.00204,98102.0,98101.0,0.39553861]
[1735195848039,0.00204,98102.0,98101.0,0.212]
[1735195851735,0.24307901,98130.0,98122.0,0.040811]
[1735195851929,0.040808,98131.0,98122.0,0.040811]
[1735195852144,0.24307901,98133.0,98122.0,0.040811]
[1735195853236,0.21722334,98124.0,98123.0,0.18]
[1735195853440,0.00652921,98124.0,98123.0,0.18]
[1735195853945,0.21269413,98151.0,98123.0,0.18]
[1735195854139,0.0346,98150.0,98146.0,0.040801]
[1735195854342,0.0346,98150.0,98146.0,0.040881]
[1735195854842,0.0495806,98147.0,98146.0,0.040881]
[1735195856040,0.001,98148.0,98146.0,0.040881]
[1735195856247,0.001,98148.0,98146.0,0.041881]
[1735195857252,0.0336,98159.0,98151.0,0.040799]
[1735195857454,0.12118552,98153.0,98151.0,0.040799]
[1735195857751,0.12118552,98153.0,98146.0,0.002]
[1735195858147,4e-05,98147.0,98146.0,0.002]
[1735195858338,0.06564,98147.0,98146.0,0.002]
[1735195859349,0.06564,98147.0,98146.0,0.001]
[1735195859943,0.06564,98147.0,98146.0,0.002]
[1735195864355,0.03384,98147.0,98146.0,0.042801]
[1735195864958,4e-05,98147.0,98146.0,0.042801]
[1735195865449,4e-05,98147.0,98146.0,0.222801]
[1735195868849,4e-05,98147.0,98146.0,0.042801]
[1735195870846,4e-05,98147.0,98146.0,0.222801]
[1735195871454,0.0908085,98162.0,98146.0,0.222801]
[1735195871652,0.0908085,98162.0,98161.0,0.040796]
[1735195871858,0.0908085,98166.0,98161.0,0.040796]
[1735195872057,0.0908085,98166.0,98154.0,0.040799]
[1735195872251,0.1316025,98166.0,98165.0,8e-05]
[1735195873452,0.1316025,98166.0,98165.0,0.00208]
[1735195873453,0.040794,98166.0,98165.0,0.00208]
[1735195874349,0.033,98168.0,98166.0,0.040794]
[1735195875350,0.033,98168.0,98167.0,8e-05]
[1735195876656,0.033,98168.0,98167.0,0.00108]
[1735195877159,0.033,98168.0,98167.0,0.00208]
[1735195888668,0.1923431,98169.0,98168.0,0.040793]
[1735195888871,0.040793,98169.0,98168.0,0.040793]
[1735195889064,0.040793,98169.0,98168.0,0.040873]
[1735195889872,0.040793,98169.0,98168.0,0.041873]
[1735195890567,0.040793,98169.0,98168.0,0.042873]
[1735195890967,0.040793,98169.0,98168.0,0.00208]
[1735195891173,0.105593,98169.0,98168.0,0.00208]
[1735195891672,0.15516334,98169.0,98168.0,0.00208]
[1735195899964,0.11437034,98169.0,98153.0,0.01053804]
[1735195900170,0.040798,98157.0,98152.0,0.040799]
[1735195900971,0.040798,98157.0,98152.0,0.05107479]
[1735195901175,0.040798,98157.0,98153.0,0.001]
[1735195901669,0.15194562,98155.0,98154.0,0.040799]
[1735195902965,0.042798,98157.0,98154.0,0.040799]
[1735195903159,0.001,98155.0,98154.0,0.041799]
[1735195903568,0.003,98155.0,98154.0,0.042799]
[1735195905767,0.15494562,98155.0,98154.0,0.042799]
[1735195907077,0.003,98155.0,98154.0,0.042799]
[1735195909876,0.15501808,98155.0,98154.0,0.042799]
[1735195911077,0.05261193,98155.0,98154.0,0.042799]
[1735195912382,0.003,98155.0,98154.0,0.042799]
[1735195913381,0.05261193,98155.0,98154.0,0.042799]
[1735195920378,0.003,98155.0,98154.0,0.042799]
[1735195920582,0.002,98155.0,98154.0,0.041799]
[1735195920873,0.003,98155.0,98154.0,0.042799]
[1735195921487,0.001,98155.0,98154.0,0.041799]
[1735195921690,0.15408544,98155.0,98154.0,0.042799]
[1735195922889,0.002,98155.0,98154.0,0.042799]
[1735195925790,0.05165459,98155.0,98154.0,0.042799]
[1735195928592,0.002,98155.0,98154.0,0.042799]
[1735195930983,0.002,98155.0,98154.0,0.222799]
[1735195933782,0.002,98155.0,98154.0,0.522799]
[1735195933988,0.0307,98180.0,98179.0,0.040788]
[1735195935186,0.0307,98180.0,98175.0,8e-05]
[1735195935492,4e-05,98176.0,98175.0,8e-05]
[1735195936699,4e-05,98176.0,98175.0,0.00108]
[1735195937489,4e-05,98176.0,98175.0,0.00208]
[1735195938390,0.12156095,98176.0,98175.0,0.00208]
[1735195939488,0.12156095,98176.0,98175.0,0.18208]
[1735195939898,4e-05,98176.0,98175.0,0.18108]
[1735195940101,4e-05,98176.0,98175.0,0.18208]
[1735195940301,4e-05,98176.0,98175.0,0.21528]
[1735195940592,0.12152095,98183.0,98182.0,0.040787]
[1735195940994,0.12152095,98183.0,98182.0,0.040867]
[1735195941392,0.040784,98190.0,98182.0,8e-05]
[1735195941393,0.12152095,98188.0,98182.0,8e-05]
[1735195941789,0.12152095,98188.0,98187.0,8e-05]
[1735195942799,0.040781,98197.0,98187.0,8e-05]
[1735195942800,0.12152095,98191.0,98187.0,8e-05]
[1735195943186,0.12152095,98191.0,98190.0,8e-05]
[1735195943391,0.12152095,98191.0,98190.0,0.040864]
[1735195944395,0.12152095,98192.0,98190.0,0.041864]
[1735195944795,0.12152095,98192.0,98191.0,8e-05]
[1735195945593,0.12152095,98193.0,98191.0,8e-05]
[1735195945796,0.12152095,98193.0,98192.0,0.040783]
[1735195945996,0.12152095,98193.0,98192.0,0.040863]
[1735195946994,0.12152095,98193.0,98192.0,0.041863]
[1735195947706,0.12152095,98193.0,98192.0,0.042863]
[1735195948805,0.12152095,98196.0,98194.0,0.040782]
[1735195949192,0.12152095,98196.0,98195.0,8e-05]
[1735195950903,0.12152095,98196.0,98195.0,0.00108]
[1735195951601,0.12152095,98196.0,98195.0,0.00208]
[1735195952705,0.04078,98199.0,98195.0,0.042861]
[1735195952706,0.12152095,98197.0,98195.0,0.042861]
[1735195953711,0.12152095,98197.0,98196.0,8e-05]
[1735195954010,0.25360461,98221.0,98210.0,0.040775]
[1735195954200,0.01161903,98219.0,98210.0,0.040775]
[1735195954401,0.01161903,98219.0,98210.0,0.040855]
[1735195954601,0.0015283,98219.0,98210.0,0.040855]
[1735195955202,0.0015283,98219.0,98210.0,0.041855]
[1735195955408,0.0015283,98219.0,98210.0,0.05220099]
[1735195955906,0.0015283,98219.0,98210.0,0.23220099]
[1735195956209,0.3608,98223.0,98218.0,0.040772]
[1735195956504,0.3608,98223.0,98222.0,0.04085]
[1735195958302,0.1614001,98223.0,98222.0,0.04085]
[1735195958705,0.1614001,98223.0,98222.0,0.04185]
[1735195960113,0.1614001,98223.0,98222.0,0.04285]
[1735195963904,0.1614001,98223.0,98222.0,0.05304937]
[1735195964803,0.1614001,98223.0,98222.0,0.23304937]
[1735195966807,0.1614001,98223.0,98222.0,0.23204937]
[1735195972913,0.0946,98256.0,98252.0,0.040758]
[1735195973215,0.0946,98256.0,98255.0,8e-05]
[1735195973419,0.062,98256.0,98255.0,8e-05]
[1735195974210,0.062,98256.0,98255.0,0.040837]
[1735195974911,0.062,98256.0,98255.0,0.041837]
[1735195976032,0.062,98256.0,98255.0,0.042837]
[1735195976336,0.062,98256.0,98255.0,0.041837]
[1735195976632,0.062,98256.0,98255.0,0.042837]
[1735195977536,0.062,98256.0,98255.0,0.05326949]
[1735195978732,0.0312,98256.0,98255.0,0.05326949]
[1735195978936,0.0305,98267.0,98266.0,0.040752]
[1735195979432,0.0305,98267.0,98266.0,0.040832]
[1735195980035,0.0305,98267.0,98266.0,0.041832]
[1735195981240,0.0305,98267.0,98266.0,0.00108]
[1735195981744,0.0305,98267.0,98266.0,0.00208]
[1735195982440,0.04079528,98267.0,98266.0,0.00208]
[1735195984136,0.040759,98251.0,98234.0,0.18327763]
[1735195984332,0.063,98250.0,98248.0,0.04076]
[1735195985639,0.064,98250.0,98248.0,0.04276]
[1735195987340,0.0322,98249.0,98248.0,0.04276]
[1735195988635,0.0332,98249.0,98248.0,0.04176]
[1735195988836,0.0352,98249.0,98248.0,0.04276]
[1735195990135,0.0352,98249.0,98248.0,0.002]
[1735195990845,0.08473159,98249.0,98248.0,0.002]
[1735195999145,0.05253159,98249.0,98248.0,0.002]
[1735196002053,0.08423159,98249.0,98248.0,0.002]
[1735196004247,0.08430655,98249.0,98248.0,0.002]
[1735196005655,0.05260655,98249.0,98248.0,0.002]
[1735196009350,0.2347493,98249.0,98248.0,0.002]
[1735196010656,0.05260655,98249.0,98248.0,0.002]
[1735196012268,0.00307496,98249.0,98248.0,0.002]
[1735196013854,0.05260655,98249.0,98248.0,0.002]
[1735196017163,0.05260655,98249.0,98248.0,0.182]
[1735196017666,0.05260655,98249.0,98248.0,0.002]
[1735196024567,0.05260655,98249.0,98248.0,0.01233877]
[1735196024875,0.05260655,98249.0,98248.0,0.002]
[1735196035369,0.05260655,98249.0,98248.0,0.2131]
[1735196035773,0.05260655,98249.0,98248.0,0.0331]
[1735196037670,0.05260655,98249.0,98248.0,0.002]
[1735196038773,0.23564247,98249.0,98248.0,0.002]
[1735196040174,0.05260655,98249.0,98248.0,0.002]
[1735196041574,0.00307496,98249.0,98248.0,0.002]
[1735196042779,0.05260655,98249.0,98248.0,0.002]
[1735196043474,0.05260655,98249.0,98248.0,0.182]
[1735196043870,0.05260655,98249.0,98248.0,0.002]
[1735196047976,0.08470655,98249.0,98248.0,0.002]
[1735196048384,0.11790655,98249.0,98248.0,0.002]
[1735196050488,0.41790655,98249.0,98220.0,0.36520724]
[1735196050787,0.040766,98233.0,98224.0,0.30433937]
[1735196050992,0.040769,98225.0,98224.0,0.30433937]
[1735196051289,0.040809,98225.0,98224.0,0.30433937]
[1735196052277,0.040809,98225.0,98224.0,0.001]
[1735196052278,0.09034059,98225.0,98224.0,0.001]
[1735196052691,0.09134059,98225.0,98224.0,0.001]
[1735196052895,0.09134059,98225.0,98205.0,0.040777]
[1735196052896,0.040775,98213.0,98205.0,0.040777]
[1735196053192,4e-05,98206.0,98205.0,0.040777]
[1735196054183,0.12167512,98206.0,98205.0,0.040777]
[1735196055180,4e-05,98206.0,98205.0,0.040777]
[1735196079414,9.346e-05,98206.0,98205.0,0.040777]
[1735196083016,0.040779,98202.0,98201.0,0.01006243]
[1735196083206,0.04078,98200.0,98199.0,0.00502388]
[1735196083615,0.04082,98200.0,98199.0,0.00502388]
[1735196084409,0.04082,98200.0,98199.0,0.01534746]
[1735196084609,0.04082,98200.0,98199.0,0.00502388]
[1735196084808,4e-05,98200.0,98199.0,0.04580388]
[1735196085409,4e-05,98200.0,98199.0,0.04680388]
[1735196085609,4e-05,98200.0,98199.0,0.22680388]
[1735196086816,0.12189164,98200.0,98199.0,0.22680388]
[1735196088121,4e-05,98200.0,98199.0,0.22680388]
[1735196092424,4e-05,98200.0,98199.0,0.04680388]
[1735196092926,4e-05,98200.0,98199.0,0.22680388]
[1735196093221,4e-05,98200.0,98199.0,0.00108655]
[1735196093920,0.01026312,98200.0,98199.0,0.00108655]
[1735196094128,4e-05,98200.0,98199.0,0.00108655]
[1735196094512,4e-05,98200.0,98192.0,0.00152754]
[1735196094719,4e-05,98200.0,98187.0,0.30433937]
[1735196094720,0.040785,98188.0,98187.0,0.30433937]
[1735196095117,4e-05,98188.0,98180.0,0.220788]
[1735196095324,0.0661,98187.0,98172.0,0.34513037]
[1735196095517,0.040789,98179.0,98174.0,0.04079]
[1735196095723,0.040789,98179.0,98175.0,0.18]
[1735196096319,0.15196854,98178.0,98175.0,0.18]
[1735196096519,0.15196854,98178.0,98175.0,0.22079]
[1735196097028,0.15196854,98178.0,98175.0,0.22379]
[1735196097620,0.15196854,98181.0,98175.0,0.22379]
[1735196097825,0.040789,98178.0,98175.0,0.22379]
[1735196098020,0.040789,98177.0,98176.0,8e-05]
[1735196099730,0.040789,98177.0,98176.0,0.00408]
[1735196101325,0.1621242,98177.0,98176.0,0.00408]
[1735196102340,0.16221421,98177.0,98176.0,0.00408]
[1735196102728,0.17255561,98177.0,98176.0,0.00408]
[1735196103226,0.05122041,98177.0,98176.0,0.00408]
[1735196105636,0.040795,98164.0,98156.0,0.0423261]
[1735196105832,0.040795,98164.0,98156.0,0.0015281]
[1735196106425,0.040795,98163.0,98156.0,0.0015281]
[1735196106626,0.040795,98163.0,98157.0,0.040797]
[1735196106832,0.001,98164.0,98157.0,0.040797]
[1735196108035,0.040797,98159.0,98157.0,0.040797]
[1735196108631,0.040797,98159.0,98157.0,0.054797]
[1735196109034,0.040797,98159.0,98157.0,0.045797]
[1735196109240,0.040797,98159.0,98157.0,0.054797]
[1735196109241,0.001,98159.0,98157.0,0.054797]
[1735196109842,0.001,98159.0,98157.0,0.049797]
[1735196110026,0.001,98159.0,98157.0,0.054797]
[1735196126240,0.001,98159.0,98158.0,0.0342]
[1735196127331,0.001,98159.0,98158.0,0.005]
[1735196127840,0.0911671,98160.0,98159.0,0.040797]
[1735196128144,0.0911671,98160.0,98159.0,0.075197]
[1735196128548,0.12155614,98160.0,98159.0,0.0344]
[1735196128737,0.12155614,98160.0,98159.0,0.075197]
[1735196128937,0.12155614,98160.0,98159.0,0.108597]
[1735196130340,0.12255614,98160.0,98159.0,0.117597]
[1735196130540,0.12255614,98160.0,98159.0,0.122597]
[1735196131536,0.12255614,98160.0,98159.0,0.36587871]
[1735196131537,0.001,98160.0,98159.0,0.36587871]
[1735196133542,0.09218988,98160.0,98159.0,0.36587871]
[1735196134543,0.09218988,98160.0,98159.0,0.122597]
[1735196138449,0.001,98160.0,98159.0,0.122597]
[1735196139850,0.001,98160.0,98159.0,0.36587871]
[1735196142239,0.001,98160.0,98159.0,0.122597]
[1735196144744,0.001,98160.0,98159.0,0.36698231]
[1735196146052,0.001,98160.0,98159.0,0.122597]
[1735196151448,0.001,98160.0,98159.0,0.054797]
[1735196154657,0.03451783,98160.0,98159.0,0.014]
[1735196155545,0.03451783,98160.0,98159.0,0.009]
[1735196155952,0.03951783,98160.0,98159.0,0.001]
[1735196156453,0.04251783,98160.0,98159.0,0.001]
[1735196156751,0.09209312,98160.0,98159.0,0.001]
[1735196162062,0.04251783,98160.0,98159.0,0.001]
[1735196164268,0.040803,98144.0,98143.0,0.24447193]
[1735196164563,0.04092083,98144.0,98142.0,0.24447193]
[1735196164866,0.1044,98143.0,98142.0,0.24447193]
[1735196165856,0.15398596,98143.0,98133.0,0.040807]
[1735196166061,0.040806,98138.0,98133.0,0.040807]
[1735196166264,0.21944788,98143.0,98133.0,0.040807]
[1735196166265,4e-05,98134.0,98133.0,0.040807]
[1735196167762,0.040807,98133.0,98130.0,0.00010055]
[1735196168770,4e-05,98131.0,98130.0,0.00410055]
[1735196169563,4e-05,98131.0,98130.0,0.00610055]
[1735196170162,4e-05,98131.0,98130.0,0.00210055]
[1735196170361,4e-05,98131.0,98130.0,0.00610055]
[1735196172268,4e-05,98131.0,98130.0,0.04240055]
[1735196172469,4e-05,98131.0,98130.0,0.07650055]
[1735196172671,4e-05,98131.0,98130.0,0.25650055]
[1735196176473,4e-05,98131.0,98130.0,0.07650055]
[1735196187469,4e-05,98131.0,98130.0,0.10980055]
[1735196190880,0.09100522,98131.0,98130.0,0.10980055]
[1735196191279,0.09100522,98131.0,98130.0,0.07570055]
[1735196191481,0.09100522,98131.0,98130.0,0.03940055]
[1735196192371,0.09100522,98131.0,98130.0,0.00610055]
[1735196193585,4e-05,98131.0,98130.0,0.00610055]
[1735196195281,4e-05,98131.0,98130.0,0.18610055]
[1735196195988,0.12165088,98131.0,98130.0,0.18610055]
[1735196197082,4e-05,98131.0,98130.0,0.18610055]
[1735196199577,0.12165702,98131.0,98130.0,0.18610055]
[1735196200887,4e-05,98131.0,98130.0,0.18610055]
[1735196202080,4e-05,98131.0,98130.0,0.43084089]
[1735196204796,0.12167962,98131.0,98130.0,0.18610055]
[1735196206090,4e-05,98131.0,98130.0,0.18610055]
[1735196210991,0.15160871,98137.0,98130.0,0.18610055]
[1735196210992,0.15160871,98137.0,98136.0,0.040805]
[1735196211303,0.18236225,98146.0,98143.0,0.040802]
[1735196211593,0.21283361,98161.0,98136.0,0.040805]
[1735196211594,0.21283361,98161.0,98160.0,0.040795]
[1735196212599,0.09036345,98171.0,98163.0,0.040793]
[1735196212794,0.09036345,98171.0,98165.0,0.040792]
[1735196212997,0.01,98161.0,98160.0,0.10728925]
[1735196213199,0.01,98161.0,98160.0,0.041795]
[1735196213392,0.01004,98161.0,98160.0,0.041795]
[1735196213593,0.00704,98161.0,98160.0,0.041795]
[1735196214989,4e-05,98161.0,98160.0,0.040795]
[1735196215390,0.00304,98161.0,98160.0,0.040795]
[1735196215592,0.01004,98161.0,98160.0,0.041795]
[1735196217899,0.01004,98161.0,98160.0,0.05203188]